bitfinex/quotes_ETHUSD_20260217
["timestamp","ask_amount","ask_price","bid_price","bid_amount"]
[1771307131092,0.47237382,1977.7,1977.0,1.26454223]
[1771307131298,0.47237382,1977.7,1977.1,0.773]
[1771307131494,0.47237382,1977.7,1977.1,1.22573069]
[1771307131694,0.47237382,1977.7,1977.1,0.773]
[1771307133121,1.26516536,1977.8,1977.2,1.26441432]
[1771307133432,0.0011,1977.8,1977.2,1.71714501]
[1771307133810,1.26513091,1977.8,1977.2,1.71714501]
[1771307134208,0.0011,1977.6,1977.2,1.71714501]
[1771307134428,0.0011,1977.6,1977.3,0.45273069]
[1771307135328,0.0011,1977.6,1977.3,1.71705138]
[1771307136335,0.0011,1977.6,1977.4,0.45273069]
[1771307136532,0.0011,1977.6,1977.5,0.774]
[1771307138232,0.0011,1977.6,1977.5,1.22673069]
[1771307140720,0.47347382,1977.8,1977.5,0.775]
[1771307141534,1.73750539,1977.8,1977.5,0.775]
[1771307142239,0.0011,1977.8,1977.5,0.775]
[1771307142634,0.0011,1977.8,1977.3,1.71706924]
[1771307142831,0.0011,1977.8,1977.4,0.775]
[1771307143739,0.0011,1977.8,1977.4,1.99207516]
[1771307145541,0.0011,1977.8,1977.4,0.7278]
[1771307147546,0.0011,1977.8,1977.5,0.45785821]
[1771307147912,0.0011,1977.8,1977.4,0.7278]
[1771307148117,0.0011,1977.7,1977.4,0.7278]
[1771307149015,10.95394702,1977.5,1976.1,0.001]
[1771307149325,10.95394702,1977.5,1975.0,0.66146833]
[1771307149326,5.529638,1975.9,1975.3,1.23385821]
[1771307149640,0.49149956,1976.4,1975.4,1.37385821]
[1771307149848,5.529638,1976.2,1975.4,1.37385821]
[1771307150410,5.529638,1976.2,1975.4,1.36885821]
[1771307150649,5.529638,1976.2,1975.5,0.005]
[1771307151846,5.529638,1976.2,1975.5,1.2705024]
[1771307152016,6.79469468,1976.2,1975.5,1.2705024]
[1771307152934,6.79469468,1976.2,1975.5,0.005]
[1771307155418,6.79469468,1976.2,1975.6,0.005]
[1771307155618,6.79469468,1976.2,1975.5,0.005]
[1771307156031,7.26733315,1976.2,1975.5,0.005]
[1771307157352,0.47263847,1975.8,1975.6,0.005]
[1771307157519,0.47263847,1975.8,1975.5,0.775]
[1771307159448,0.47263847,1976.3,1975.5,0.775]
[1771307159622,2.362634,1975.8,1975.5,0.775]
[1771307160425,0.47263847,1975.8,1975.6,0.001]
[1771307160723,1.26492612,1976.4,1975.6,0.001]
[1771307160724,0.47373847,1976.1,1975.6,0.001]
[1771307160928,2.362634,1975.8,1975.6,0.001]
[1771307161348,3.62795987,1975.8,1975.6,0.001]
[1771307161554,1.26532587,1975.8,1975.6,0.001]
[1771307162031,1.26532587,1975.8,1975.5,0.775]
[1771307162032,0.47263847,1975.7,1975.5,0.774]
[1771307162357,1.26532587,1975.8,1975.2,0.912]
[1771307162358,2.83527247,1975.4,1975.2,0.912]
[1771307162653,2.83527247,1975.4,1974.7,0.001]
[1771307162654,2.362634,1975.3,1974.7,0.001]
[1771307162857,2.362634,1975.3,1974.8,1.687]
[1771307163057,2.83527247,1975.2,1974.8,1.687]
[1771307163257,2.83527247,1975.2,1974.9,0.001]
[1771307163563,1.26575869,1975.1,1974.9,0.001]
[1771307164061,1.26566165,1975.3,1974.9,0.001]
[1771307164358,2.362634,1975.2,1974.9,0.001]
[1771307165130,2.362634,1975.2,1974.8,1.686]
[1771307165330,2.362634,1975.2,1974.9,0.001]
[1771307165552,1.73839716,1975.1,1974.7,0.001]
[1771307165754,1.26575869,1975.1,1974.8,0.774]
[1771307166663,1.26575869,1975.1,1974.8,0.773]
[1771307166845,1.26575869,1975.1,1974.8,0.001]
[1771307167044,1.26575869,1975.1,1974.8,0.774]
[1771307167243,1.73839716,1975.1,1974.8,0.774]
[1771307167558,0.47263847,1975.1,1974.8,0.774]
[1771307167764,1.2657407,1975.2,1974.8,0.774]
[1771307167967,2.362634,1975.1,1974.8,0.774]
[1771307168262,0.47263847,1975.0,1974.8,0.774]
[1771307168465,2.362634,1974.9,1974.8,0.774]
[1771307169069,2.362634,1974.9,1974.7,0.001]
[1771307169440,1.26547419,1975.6,1974.7,1.75129935]
[1771307169635,1.73805785,1975.7,1974.9,1.26588688]
[1771307169831,1.26531794,1975.8,1974.9,1.75019725]
[1771307170036,2.362634,1975.6,1974.9,1.75019725]
[1771307171764,1.26547947,1975.6,1974.9,1.75019725]
[1771307171973,5.53399338,1975.8,1974.9,1.75019725]
[1771307171974,1.26541698,1975.7,1974.9,1.75019725]
[1771307172158,2.362634,1975.6,1974.9,1.75019725]
[1771307172954,2.362634,1975.6,1974.9,1.26588688]
[1771307173454,2.362634,1975.6,1975.0,1.684]
[1771307173658,0.0011,1975.5,1975.0,2.94980997]
[1771307174773,0.45927194,1975.5,1975.0,1.684]
[1771307175082,2.362634,1975.4,1975.1,0.772]
[1771307175366,0.45817194,1975.4,1975.1,0.772]
[1771307175767,0.45817194,1975.4,1975.1,0.7256]
[1771307176144,1.26660248,1975.5,1975.1,0.7256]
[1771307176342,2.362634,1975.4,1975.1,0.7256]
[1771307176548,2.82080594,1975.3,1974.9,1.685]
[1771307176845,2.362634,1975.3,1974.9,1.685]
[1771307178073,2.362634,1975.3,1974.9,2.95087936]
[1771307179154,2.362634,1975.3,1974.9,1.685]
[1771307182951,1.26561539,1975.4,1974.9,1.685]
[1771307183449,2.362634,1975.3,1974.9,1.685]
[1771307183650,2.362634,1975.3,1974.9,2.95087758]
[1771307183960,2.362634,1975.3,1974.9,1.685]
[1771307186361,2.362634,1975.3,1975.0,0.001]
[1771307186572,0.0011,1975.2,1975.0,0.001]
[1771307190999,0.0011,1975.5,1975.0,0.45985504]
[1771307192075,0.0011,1975.5,1975.1,1.26575869]
[1771307192293,0.0011,1975.5,1975.0,1.72564225]
[1771307193796,0.0011,1975.5,1975.1,0.45885504]
[1771307194292,0.0011,1975.5,1975.2,1.26569461]
[1771307194506,0.0011,1975.5,1975.3,0.774]
[1771307197101,0.0011,1975.5,1975.3,2.03961673]
[1771307198216,0.0011,1975.8,1975.4,0.45885504]
[1771307198375,0.0011,1975.7,1975.4,0.45885504]
[1771307198579,0.0011,1975.7,1975.3,2.03961673]
[1771307199314,0.0011,1975.7,1975.4,0.912]
[1771307200718,0.0011,1975.7,1975.0,0.45985504]
[1771307200912,0.45927194,1975.7,1975.1,6.750892]
[1771307201092,0.0011,1975.7,1975.1,7.20974704]
[1771307203623,0.0011,1975.7,1975.2,0.45885504]
[1771307203826,0.0011,1976.1,1975.5,0.45885504]
[1771307204020,0.0011,1976.1,1975.6,0.777]
[1771307204325,0.0011,1976.1,1975.6,2.04238167]
[1771307210312,0.0011,1976.0,1975.6,2.04238167]
[1771307212000,0.0011,1976.0,1975.7,0.912]
[1771307213422,0.0011,1976.0,1975.7,2.1773414]
[1771307215832,0.0011,1976.0,1975.7,2.17736541]
[1771307216801,0.0011,1976.0,1975.7,0.912]
[1771307218947,0.46812673,1976.0,1975.7,0.912]
[1771307219124,0.46812673,1976.0,1975.8,0.781]
[1771307220716,0.0011,1976.0,1975.8,0.781]
[1771307221602,0.46812673,1976.0,1975.8,0.781]
[1771307222531,0.46812673,1976.0,1975.8,0.782]
[1771307222732,0.0011,1975.9,1975.8,0.782]
[1771307224149,0.46812673,1975.9,1975.8,0.782]
[1771307224338,0.46812673,1975.9,1975.5,0.001]
[1771307224518,0.46812673,1975.9,1975.6,0.78]
[1771307224847,0.46702673,1975.7,1975.5,0.001]
[1771307225053,0.46702673,1975.7,1975.3,0.001]
[1771307225354,0.46702673,1975.7,1975.2,0.001]
[1771307226036,0.46702673,1975.4,1975.0,0.781]
[1771307227258,0.46702673,1975.3,1975.0,0.781]
[1771307227419,0.46702673,1975.2,1975.0,0.781]
[1771307227841,0.46702673,1975.2,1974.9,0.001]
[1771307228038,0.46702673,1975.2,1974.9,0.78]
[1771307228240,0.46702673,1975.2,1974.8,0.001]
[1771307228544,1.26561878,1975.4,1974.8,0.001]
[1771307228545,0.46702673,1975.0,1974.8,0.001]
[1771307229354,1.73286091,1975.0,1974.8,0.001]
[1771307229524,0.46702673,1975.0,1974.8,0.001]
[1771307229724,1.73286386,1975.0,1974.8,0.001]
[1771307230220,5.492939,1975.9,1974.8,0.46694705]
[1771307230420,0.46702673,1975.8,1974.9,0.46594705]
[1771307231518,6.75819279,1975.9,1975.1,0.46594705]
[1771307231717,0.46702673,1975.8,1975.2,0.778]
[1771307231921,6.75819279,1975.9,1975.2,0.778]
[1771307231922,1.26634676,1975.9,1975.2,0.778]
[1771307232152,1.73337349,1975.9,1975.2,0.778]
[1771307232349,0.46702673,1975.8,1975.2,0.778]
[1771307232563,0.46702673,1975.8,1975.0,1.26582278]
[1771307232759,0.46702673,1975.8,1975.3,0.778]
[1771307233337,0.46702673,1975.8,1975.2,0.778]
[1771307233854,1.73240102,1975.7,1975.2,0.778]
[1771307234023,0.46702673,1975.6,1975.2,0.778]
[1771307235852,0.47453953,1975.5,1975.1,0.001]
[1771307238048,1.74004741,1975.5,1975.1,0.001]
[1771307238576,0.47453953,1975.5,1975.1,0.001]
[1771307238775,1.73994917,1975.7,1975.1,0.001]
[1771307240580,0.47453953,1975.6,1975.1,0.001]
[1771307242748,1.74003083,1975.6,1975.1,0.001]
[1771307243380,1.74003083,1975.6,1974.8,0.001]
[1771307243381,0.47453953,1975.5,1974.8,0.001]
[1771307245080,0.47453953,1975.3,1974.8,0.001]
[1771307246281,1.26556646,1975.4,1974.8,0.001]
[1771307246487,1.74010599,1975.4,1974.8,0.001]
[1771307247274,0.47453953,1975.3,1974.8,0.001]
[1771307247795,1.26556646,1975.4,1974.8,0.001]
[1771307247963,1.26556646,1975.4,1974.9,0.001]
[1771307249288,1.74010599,1975.4,1974.9,0.001]
[1771307250309,1.26556646,1975.4,1974.9,0.001]
[1771307251492,1.74010599,1975.4,1974.9,0.001]
[1771307253992,6.75833982,1975.3,1974.9,0.001]
[1771307255899,0.47453953,1975.2,1974.8,0.001]
[1771307256092,6.75835538,1975.3,1974.8,0.001]
[1771307256290,5.49268886,1975.3,1974.8,0.47591126]
[1771307259509,5.49268886,1975.3,1974.8,1.741845]
[1771307260010,5.49268886,1975.3,1974.9,0.001]
[1771307260181,0.0011,1975.2,1974.9,0.001]
[1771307262705,0.0011,1975.2,1974.9,0.47591126]
[1771307263597,0.0011,1975.2,1975.0,0.771]
[1771307264231,0.0011,1975.2,1975.0,1.22181649]
[1771307264402,0.0011,1975.2,1975.1,1.71657518]
[1771307266632,0.0011,1975.5,1975.1,1.71657518]
[1771307266927,0.0011,1975.5,1975.2,0.45081649]
[1771307267130,0.0011,1975.5,1975.0,1.22181649]
[1771307267633,0.0011,1975.5,1975.0,2.48762863]
[1771307268706,0.0011,1975.5,1975.1,0.45081649]
[1771307269934,0.0011,1975.5,1975.2,0.773]
[1771307271837,0.0011,1975.8,1975.3,0.47200194]
[1771307272612,0.0011,1975.4,1975.3,0.47200194]
[1771307272813,0.0011,1975.8,1975.3,0.47200194]
[1771307273025,0.0011,1975.5,1975.4,1.7375684]
[1771307273332,0.0011,1975.7,1975.5,0.47200194]
[1771307273528,0.0011,1975.7,1975.6,0.774]
[1771307274521,0.0011,1975.7,1975.6,1.24600194]
[1771307274919,0.0011,1975.7,1975.6,0.774]
[1771307277253,0.0011,1975.7,1975.6,2.51144028]
[1771307279752,0.0011,1975.7,1975.6,0.774]
[1771307280734,0.49247662,1975.7,1975.5,0.777]
[1771307281844,0.49247662,1975.7,1974.9,0.001]
[1771307281845,0.49137662,1975.6,1974.9,0.001]
[1771307282050,0.49137662,1975.6,1975.0,0.776]
[1771307283349,0.0011,1975.7,1975.0,1.24800194]
[1771307284132,0.0011,1975.7,1975.1,1.26575869]
[1771307284650,0.0011,1975.7,1975.2,0.47200194]
[1771307284960,0.0011,1975.6,1975.4,0.001]
[1771307285162,0.0011,1975.6,1975.4,0.777]
[1771307287037,0.0011,1975.6,1975.4,2.04256153]
[1771307287361,0.0011,1975.6,1975.4,0.777]
[1771307288441,0.0011,1975.6,1975.4,2.04254409]
[1771307290650,0.0011,1975.6,1975.4,2.51454603]
[1771307291676,0.0011,1975.8,1975.5,0.47200194]
[1771307291881,0.0011,1976.1,1975.7,0.47200194]
[1771307292175,0.0011,1976.2,1975.8,1.25100194]
[1771307292377,0.0011,1976.3,1975.9,1.26524621]
[1771307293276,0.0011,1976.3,1975.9,1.73724815]
[1771307296651,0.0011,1976.3,1976.0,0.49037954]
[1771307296985,0.0011,1976.3,1976.1,0.781]
[1771307297389,0.0011,1976.2,1976.1,0.781]
[1771307298176,0.0011,1976.5,1976.1,0.781]
[1771307298376,0.0011,1976.5,1976.1,1.27137954]
[1771307298883,0.0011,1976.5,1976.2,1.26505414]
[1771307299295,0.0011,1976.5,1976.1,5.84136824]
[1771307299296,0.47683467,1976.5,1976.1,0.781]
[1771307299475,0.47683467,1976.4,1976.2,0.782]
[1771307300795,0.0011,1976.4,1976.2,0.782]
[1771307301092,0.0011,1976.4,1976.2,2.0470217]
[1771307301398,0.0011,1976.4,1976.2,0.782]
[1771307301783,0.0011,1976.4,1976.2,2.04705095]
[1771307302173,0.0011,1976.4,1976.2,0.782]
[1771307303590,0.0011,1976.4,1976.2,1.26504687]
[1771307303795,0.0011,1976.4,1976.3,0.783]
[1771307305710,10.24,1977.6,1976.4,30.0]
[1771307305869,10.24,1977.6,1976.3,2.04799013]
[1771307305870,0.47683467,1977.7,1977.0,5.49015098]
[1771307306072,0.47573467,1977.6,1976.5,5.49015098]
[1771307306368,0.47573467,1977.6,1976.6,1.695]
[1771307306574,0.47573467,1977.2,1976.3,1.75536967]
[1771307306793,0.47573467,1977.2,1976.4,1.695]
[1771307307210,0.47573467,1977.2,1976.4,2.18537954]
[1771307307821,0.47573467,1977.2,1976.5,1.26486213]
[1771307308309,1.74015406,1977.2,1976.5,1.26486213]
[1771307308512,0.47573467,1977.2,1976.5,1.26486213]
[1771307309301,0.47573467,1977.5,1976.6,0.49037954]
[1771307309728,0.0011,1977.1,1976.6,0.49037954]
[1771307310022,0.0011,1977.1,1976.7,1.75511369]
[1771307310221,0.0011,1977.2,1976.9,5.98053052]
[1771307310443,0.0011,1977.7,1977.1,5.98053052]
[1771307310625,0.0011,1977.7,1977.2,0.783]
[1771307310928,0.0011,1977.4,1977.2,0.783]
[1771307312854,0.0011,1977.7,1977.3,1.26435037]
[1771307316246,0.0011,1977.7,1977.3,1.75472991]
[1771307320849,1.26374047,1978.3,1977.3,1.75472991]
[1771307320850,0.47573467,1978.6,1977.5,0.49037954]
[1771307321050,0.47573467,1978.6,1977.7,0.49037954]
[1771307321252,0.47573467,1978.6,1977.6,0.787]
[1771307321465,0.47573467,1978.6,1977.6,1.27737954]
[1771307322161,0.47573467,1978.6,1977.7,0.49037954]
[1771307322655,0.47573467,1978.6,1977.8,1.26403074]
[1771307322848,0.47573467,1978.6,1977.9,0.49037954]
[1771307323049,0.47573467,1978.6,1978.0,0.786]
[1771307323528,0.47573467,1978.5,1978.0,0.786]
[1771307325663,0.45220424,1978.4,1978.0,0.786]
[1771307326235,1.26358913,1978.5,1978.0,0.786]
[1771307326438,0.45220424,1978.5,1978.0,2.04989039]
[1771307326958,1.71580243,1978.5,1978.0,0.786]
[1771307327158,0.45220424,1978.5,1978.0,2.04989782]
[1771307327531,0.45220424,1978.5,1978.0,0.786]
[1771307327973,0.45220424,1978.5,1978.0,2.04989648]
[1771307328274,0.45220424,1978.4,1978.0,0.786]
[1771307328432,0.45220424,1978.4,1978.0,2.04990242]
[1771307328759,0.45220424,1978.4,1978.0,0.786]
[1771307328964,0.45220424,1978.4,1978.0,2.04989601]
[1771307329339,0.45220424,1978.8,1978.0,2.04989601]
[1771307329543,0.45292474,1978.7,1978.0,2.04989601]
[1771307330372,0.45292474,1978.7,1977.7,0.786]
[1771307330584,0.45292474,1978.7,1977.4,0.912]
[1771307330871,0.45292474,1978.4,1977.5,0.608]
[1771307331664,0.45292474,1978.2,1977.6,1.26415857]
[1771307331850,0.45292474,1978.2,1977.5,0.608]
[1771307332742,0.45292474,1978.2,1977.5,1.87222223]
[1771307333266,0.45292474,1978.2,1977.6,0.785]
[1771307334848,0.45292474,1978.1,1977.6,0.785]
[1771307335667,0.45292474,1978.1,1977.6,0.001]
[1771307335859,0.45402474,1978.1,1977.6,0.001]
[1771307338091,0.0011,1978.1,1977.6,0.001]
[1771307338398,0.45402474,1978.1,1977.6,0.001]
[1771307338602,0.45292474,1978.0,1977.6,0.001]
[1771307339869,0.0011,1978.1,1977.6,0.001]
[1771307340197,0.45402474,1978.1,1977.6,0.001]
[1771307340574,1.71786737,1978.1,1977.6,0.001]
[1771307341085,1.26494075,1978.1,1977.6,0.001]
[1771307341284,1.71786549,1978.1,1977.6,0.001]
[1771307341674,0.45402474,1978.1,1977.6,0.001]
[1771307342101,0.45292474,1978.0,1977.6,0.001]
[1771307344090,1.26396683,1977.9,1977.6,0.001]
[1771307344303,0.45292474,1977.8,1977.6,0.001]
[1771307345291,0.45292474,1977.8,1977.4,0.001]
[1771307346077,1.26409465,1977.7,1977.4,0.001]
[1771307346386,1.71701939,1977.7,1977.4,0.001]
[1771307346586,0.45292474,1977.6,1977.4,0.001]
[1771307347624,1.26409465,1977.7,1977.4,0.001]
[1771307348115,1.26409465,1977.7,1977.6,0.001]
[1771307348717,1.71697676,1977.8,1977.6,0.001]
[1771307349032,1.26396462,1978.0,1977.6,0.001]
[1771307349316,1.71688936,1978.0,1977.6,0.001]
[1771307349517,0.45292474,1977.9,1977.6,0.001]
[1771307350318,1.26403074,1977.8,1977.6,0.001]
[1771307350898,1.71695548,1977.8,1977.6,0.001]
[1771307351101,0.0011,1978.2,1977.6,0.001]
[1771307351295,1.26597916,1978.2,1977.6,0.001]
[1771307351526,1.7189039,1978.2,1977.6,0.001]
[1771307351838,0.45402474,1978.1,1977.6,0.001]
[1771307351992,0.45402474,1978.0,1977.6,0.001]
[1771307352194,0.45292474,1978.0,1977.6,0.001]
[1771307352502,1.71793418,1978.0,1977.6,0.001]
[1771307353195,0.0011,1977.9,1977.6,0.001]
[1771307353422,0.0011,1978.0,1977.6,0.001]
[1771307358430,0.0011,1978.2,1977.7,0.45847446]
[1771307358731,0.0022,1978.2,1977.7,0.45847446]
[1771307358921,0.0011,1978.2,1977.7,0.45847446]
[1771307359122,0.0011,1978.2,1977.8,1.26403074]
[1771307359434,0.0011,1978.2,1977.8,2.04303074]
[1771307360936,0.0011,1977.9,1977.8,2.04303074]
[1771307361131,0.0011,1978.2,1977.8,2.04303074]
[1771307361438,0.0011,1978.0,1977.8,2.04303074]
[1771307361808,0.0011,1978.2,1977.8,2.5015052]
[1771307362011,0.0022,1978.2,1977.8,2.5015052]
[1771307362342,0.0022,1978.2,1977.9,0.45847446]
[1771307363335,0.0022,1978.2,1977.9,1.72239146]
[1771307365141,0.0011,1978.1,1977.8,0.779]
[1771307365317,0.0011,1978.1,1977.8,2.04302313]
[1771307365514,0.0011,1978.2,1977.8,2.04302313]
[1771307365719,0.0011,1978.1,1977.8,2.04302313]
[1771307367042,0.0011,1978.2,1977.8,2.50149759]
[1771307367242,0.0022,1978.2,1977.9,0.45847446]
[1771307367545,0.0011,1978.1,1977.8,2.04302313]
[1771307367747,0.0011,1978.1,1977.8,0.779]
[1771307367947,0.0011,1978.1,1977.8,2.04302765]
[1771307368315,0.0011,1978.0,1977.8,0.779]
[1771307368517,0.0011,1978.1,1977.8,2.0430225]
[1771307370246,0.0011,1978.4,1977.9,0.45847446]
[1771307370442,0.0011,1978.4,1977.8,2.0430225]
[1771307371148,0.47390336,1978.4,1977.8,2.0430225]
[1771307371938,0.0011,1978.4,1977.8,2.50149696]
[1771307373245,0.0011,1978.4,1977.9,0.001]
[1771307373446,0.0011,1978.3,1977.9,0.001]
[1771307376533,0.47280336,1978.2,1977.9,0.001]
[1771307376736,0.0011,1978.3,1977.9,0.001]
[1771307383783,0.0011,1978.3,1977.9,0.45947446]
[1771307385978,0.0011,1978.3,1978.0,1.26390293]
[1771307386486,0.0011,1978.3,1978.0,0.001]
[1771307386794,0.0011,1978.2,1978.0,0.001]
[1771307388688,0.45875391,1978.2,1978.0,0.001]
[1771307388865,0.45875391,1978.2,1977.8,0.001]
[1771307389066,0.45875391,1978.2,1977.6,0.787]
[1771307389067,0.45765391,1978.0,1977.6,0.787]
[1771307389960,1.72161272,1978.0,1977.6,0.787]
[1771307390365,0.45736859,1977.9,1977.6,0.787]
[1771307394673,0.45736859,1977.8,1977.6,0.001]
[1771307395184,0.45736859,1978.0,1977.6,0.001]
[1771307395580,1.72128098,1978.0,1977.6,0.001]
[1771307398916,0.45736859,1977.9,1977.6,0.001]
[1771307400300,1.72139933,1977.8,1977.6,0.001]
[1771307400511,0.45736859,1977.7,1977.4,0.786]
[1771307400691,0.45736859,1977.7,1977.4,0.001]
[1771307401514,0.45846859,1977.9,1977.4,1.26528325]
[1771307401672,0.0011,1977.9,1977.4,1.7246738]
[1771307401873,0.0011,1977.9,1977.5,0.45939055]
[1771307402185,0.0011,1977.9,1977.4,1.26528325]
[1771307402909,0.0011,1977.9,1977.4,1.7246738]
[1771307404790,0.0011,1977.9,1977.4,0.001]
[1771307404997,0.45846859,1977.9,1977.4,0.001]
[1771307405299,0.45736859,1977.8,1977.4,0.001]
[1771307406119,0.45736859,1977.6,1977.1,0.001]
[1771307406592,1.72157584,1977.6,1977.1,0.001]
[1771307407513,0.45736859,1977.5,1977.1,0.001]
[1771307408599,1.26428643,1977.4,1977.1,0.001]
[1771307408798,1.72165502,1977.4,1977.1,0.001]
[1771307410486,0.45736859,1977.4,1977.1,0.001]
[1771307410992,1.7216826,1977.4,1977.1,0.001]
[1771307412301,0.45736859,1977.3,1977.1,0.001]
[1771307412525,0.45736859,1977.3,1977.2,0.001]
[1771307412720,0.45736859,1977.3,1976.9,0.784]
[1771307412922,0.45736859,1977.1,1976.7,0.911]
[1771307413399,0.45736859,1977.1,1976.9,0.001]
[1771307414699,0.45736859,1977.1,1976.3,0.001]
[1771307414700,0.46418315,1977.0,1976.3,0.001]
[1771307414922,0.46418315,1976.8,1976.3,0.001]
[1771307415444,1.2646062,1976.9,1976.3,0.001]
[1771307415733,1.72878935,1976.9,1976.3,0.001]
[1771307416411,0.46418315,1976.8,1976.3,0.001]
[1771307416927,1.26473415,1976.7,1976.3,0.001]
[1771307418155,1.26464655,1976.9,1976.3,0.001]
[1771307418505,1.7288297,1976.9,1976.3,0.001]
[1771307418728,1.26464655,1976.9,1976.3,0.001]
[1771307419037,1.26464655,1976.9,1976.3,1.76261298]
[1771307419234,1.72876603,1977.0,1976.3,1.76261298]
[1771307419643,1.72876603,1977.0,1976.3,0.49767373]
[1771307420148,1.72876603,1977.0,1976.3,1.76265561]
[1771307420314,1.72873169,1977.0,1976.3,1.76265561]
[1771307420516,0.0011,1977.8,1977.0,0.49667373]
[1771307420715,0.0011,1977.8,1977.2,0.49667373]
[1771307421033,0.0011,1977.8,1977.3,1.26435037]
[1771307425265,0.0011,1977.7,1977.3,1.26435037]
[1771307425636,0.46528315,1977.7,1976.9,5.05840034]
[1771307425836,0.46528315,1977.7,1976.9,5.84140034]
[1771307426988,0.46528315,1977.7,1976.9,6.33807407]
[1771307429355,1e-08,1978.1,1977.1,0.49667373]
[1771307429542,1e-08,1978.1,1977.5,0.49667373]
[1771307429743,1e-08,1978.1,1977.6,0.49667373]
[1771307431759,1e-08,1978.1,1977.7,1.26409465]
[1771307433569,1e-08,1978.1,1977.8,0.49667373]
[1771307433771,1e-08,1978.1,1977.9,1.26396683]
[1771307437180,0.0011,1978.0,1977.9,1.26396683]
[1771307438085,0.0011,1978.0,1977.8,0.49667373]
[1771307438774,0.0011,1978.2,1977.8,0.49667373]
[1771307440477,0.0011,1978.2,1977.9,1.26396683]
[1771307442799,0.0011,1978.2,1977.8,5.55254106]
[1771307442974,0.0011,1978.2,1977.9,0.49667373]
[1771307444962,0.0011,1978.2,1978.0,1.26390293]
[1771307445191,0.0011,1978.2,1978.0,1.75912914]
[1771307445969,0.46418315,1978.7,1978.0,1.75912914]
[1771307447692,0.46981725,1978.8,1978.1,0.49522621]
[1771307447890,0.46981725,1978.7,1978.1,0.49522621]
[1771307449197,0.46981725,1978.7,1978.0,1.26490293]
[1771307449569,0.0011,1978.1,1978.0,1.26490293]
[1771307449768,0.46981725,1978.6,1978.0,1.26490293]
[1771307449980,0.0011,1978.2,1978.0,6.73733234]
[1771307450303,0.46981725,1978.6,1978.0,6.73733234]
[1771307450593,0.0011,1978.4,1978.0,6.73733234]
[1771307456102,0.46982938,1978.4,1978.0,1.26490293]
[1771307456282,0.46982938,1978.4,1978.0,0.001]
[1771307456487,0.0011,1978.4,1978.0,0.001]
[1771307461023,0.46982938,1978.4,1978.0,0.001]
[1771307462817,0.0011,1978.4,1978.0,0.001]
[1771307463338,0.0011,1978.4,1978.1,0.001]
[1771307463541,0.0011,1978.3,1978.1,0.001]
[1771307464607,0.46872938,1978.2,1977.8,0.001]
[1771307464809,0.46872938,1978.0,1977.7,0.001]
[1771307465010,0.46872938,1978.0,1977.7,0.002]
[1771307465232,0.0011,1978.3,1977.9,5.47242941]
[1771307465538,0.0011,1978.3,1978.0,0.49973855]
[1771307466816,0.0011,1978.3,1978.0,1.76359806]
[1771307467147,0.0011,1978.3,1978.1,0.001]
[1771307471576,0.0011,1978.3,1977.8,1.26398215]
[1771307471861,0.46982938,1978.3,1977.9,0.001]
[1771307473058,0.46872938,1978.2,1977.7,0.001]
[1771307473370,0.46872938,1978.1,1977.7,0.002]
[1771307473573,0.46872938,1978.1,1977.7,0.001]
[1771307474963,0.48447675,1977.9,1977.7,0.001]
[1771307475167,0.48447675,1977.9,1977.2,5.856566]
[1771307475168,0.48447675,1977.9,1977.2,1.26440506]
[1771307475466,0.48447675,1977.9,1977.3,0.001]
[1771307475855,0.48447675,1977.9,1977.4,0.001]
[1771307476061,1.23247675,1977.8,1977.3,0.001]
[1771307476436,1.23247675,1977.8,1977.4,0.001]
[1771307476669,1.23247675,1977.8,1977.3,0.001]
[1771307476868,1.23247675,1977.8,1977.6,0.001]
[1771307479490,0.48447675,1977.8,1977.6,0.001]
[1771307481177,0.48447675,1978.0,1977.6,0.002]
[1771307481381,0.749,1977.9,1977.7,0.001]
[1771307481554,1.23347675,1977.9,1977.7,0.001]
[1771307481873,0.749,1977.9,1977.7,0.001]
[1771307482067,0.48447675,1977.8,1977.6,0.001]
[1771307482263,0.749,1977.9,1977.6,0.002]
[1771307482448,0.48447675,1977.9,1977.7,0.001]
[1771307482648,0.48447675,1977.8,1977.6,0.002]
[1771307483174,0.75,1977.9,1977.6,0.002]
[1771307483362,1.23447675,1977.9,1977.6,0.002]
[1771307485576,1.23447675,1977.9,1977.6,0.001]
[1771307486763,2.17588385,1978.2,1977.7,0.001]
[1771307486955,0.48447675,1978.1,1977.7,0.001]
[1771307487458,0.48447675,1978.1,1977.6,0.001]
[1771307487459,0.48447675,1978.0,1977.6,0.001]
[1771307489689,1.74839083,1978.0,1977.7,0.001]
[1771307489872,1.74949083,1978.0,1977.7,0.001]
[1771307490069,0.48447675,1977.9,1977.7,0.001]
[1771307490583,0.752,1977.8,1977.7,0.001]
[1771307490794,1.23647675,1977.8,1977.7,0.001]
[1771307491506,0.48447675,1977.7,1976.8,0.45171786]
[1771307491795,0.48447675,1977.4,1976.6,1.71646531]
[1771307492010,1.23747675,1977.3,1976.6,1.71646531]
[1771307492193,1.23747675,1977.3,1976.5,1.26481836]
[1771307492194,0.48447675,1977.2,1976.5,1.26481836]
[1771307492376,0.48447675,1977.2,1976.5,1.71653622]
[1771307495685,0.752,1977.1,1976.5,1.71653622]
[1771307496392,1.23647675,1977.1,1976.5,1.71653622]
[1771307497493,1.23647675,1977.1,1976.5,1.26481836]
[1771307497672,1.23647675,1977.1,1976.4,5.06062718]
[1771307497673,0.48447675,1977.0,1976.4,0.001]
[1771307497873,0.48447675,1976.8,1976.4,0.001]
[1771307500780,0.48447675,1976.8,1976.3,0.001]
[1771307500781,5.47242941,1976.7,1976.3,0.001]
[1771307500977,1.23547675,1976.6,1976.3,0.001]
[1771307501188,1.23547675,1976.6,1976.1,0.001]